bitfinex/quotes_ETHUSD_20241013
["timestamp","ask_amount","ask_price","bid_price","bid_amount"]
[1728781125874,5.7911,2482.5,2482.2,1.3098955]
[1728781126203,5.7911,2482.5,2482.3,0.08283226]
[1728781126390,5.7911,2482.5,2482.2,1.3098955]
[1728781126589,5.7911,2482.5,2482.4,0.08273969]
[1728781126762,5.7911,2482.5,2482.2,1.3098955]
[1728781126961,5.7911,2482.5,2482.3,0.08283226]
[1728781127302,5.7911,2482.5,2482.1,4.0287]
[1728781127467,5.7911,2482.5,2482.4,0.08273969]
[1728781127668,5.7911,2482.5,2482.2,1.3098955]
[1728781127897,5.7911,2482.5,2482.4,0.08273969]
[1728781128478,5.7911,2482.5,2482.2,1.3098955]
[1728781128687,5.7911,2482.5,2482.4,0.08273969]
[1728781128890,5.7911,2482.5,2482.3,0.08283226]
[1728781129077,5.7911,2482.5,2482.4,0.08273969]
[1728781129700,5.7911,2482.5,2482.2,1.3098955]
[1728781130002,5.7911,2482.5,2482.4,0.08273969]
[1728781130243,5.7911,2482.5,2482.3,0.08283226]
[1728781130668,5.7911,2482.5,2482.2,1.3098955]
[1728781130861,5.7911,2482.5,2482.4,0.08273969]
[1728781131057,5.7911,2482.5,2482.2,1.3098955]
[1728781131262,5.7911,2482.5,2482.4,0.08273969]
[1728781131511,5.7911,2482.5,2482.2,1.3098955]
[1728781131715,5.7911,2482.5,2482.4,0.08273969]
[1728781131872,5.7911,2482.5,2482.3,0.08283226]
[1728781132068,5.7911,2482.5,2482.2,1.3098955]
[1728781132307,5.7911,2482.5,2482.4,0.08273596]
[1728781132519,5.7911,2482.5,2482.3,0.08282852]
[1728781132670,5.7911,2482.5,2482.4,0.08273596]
[1728781132867,11.27051668,2482.5,2481.9,8.90569632]
[1728781133060,0.8049,2482.4,2482.0,2.43838237]
[1728781133386,0.8049,2482.4,2482.1,0.42849296]
[1728781133689,0.8049,2482.4,2482.0,1.39300176]
[1728781133900,0.8049,2482.4,2482.2,0.0829211]
[1728781134099,0.8049,2482.4,2482.1,0.38536571]
[1728781134307,0.8049,2482.4,2482.3,0.08282852]
[1728781134493,0.8049,2482.4,2482.2,0.0829211]
[1728781134693,0.8049,2482.4,2482.0,5.3388855]
[1728781135008,0.8049,2482.4,2482.1,0.4285682]
[1728781135204,0.8049,2482.4,2482.1,0.08301368]
[1728781136906,5.0,2482.2,2482.1,0.08301368]
[1728781137097,5.0,2482.2,2482.1,0.51166161]
[1728781137292,5.0,2482.2,2482.1,0.42864793]
[1728781137601,5.8049,2482.2,2482.1,0.51162963]
[1728781141180,5.8049,2482.2,2482.1,0.20916061]
[1728781141373,5.8049,2482.2,2482.1,0.20916764]
[1728781141691,5.8049,2482.2,2482.1,0.20916735]
[1728781143479,5.8049,2482.2,2482.1,0.209168]
[1728781143680,5.8049,2482.2,2482.1,0.0829817]
[1728781143880,5.8049,2482.2,2482.1,0.20916726]
[1728781144081,5.8049,2482.2,2482.1,0.20916721]
[1728781145420,5.8049,2482.2,2482.1,0.20916722]
[1728781146778,5.8049,2482.2,2482.1,0.2091668]
[1728781148809,5.8049,2482.2,2482.1,0.51172186]
[1728781149126,5.8049,2482.2,2482.1,0.2091668]
[1728781149279,5.8049,2482.2,2482.1,0.0829817]
[1728781149484,5.8049,2482.2,2482.1,0.20916593]
[1728781150008,5.8049,2482.2,2482.1,0.0829817]
[1728781150409,5.8049,2482.2,2482.1,0.20916579]
[1728781150630,5.8049,2482.2,2482.1,0.0829817]
[1728781152328,5.8049,2482.2,2482.1,0.20916599]
[1728781152701,5.8049,2482.2,2482.1,0.0829817]
[1728781152899,6.95755068,2482.2,2482.1,0.0829817]
[1728781153201,5.0,2481.9,2481.8,2.0669955]
[1728781153529,5.0,2481.9,2481.8,9.0456079]
[1728781153840,5.0,2481.9,2481.8,9.04556098]
[1728781154407,5.0,2481.9,2481.8,5.01626098]
[1728781155548,5.0,2481.9,2481.8,4.68817343]
[1728781155849,5.0,2481.9,2481.8,5.01623547]
[1728781158668,5.0,2481.9,2481.8,5.01610137]
[1728781159444,5.0,2481.9,2481.8,4.6880136]
[1728781159641,5.0,2481.9,2481.8,5.01610136]
[1728781161527,5.0,2481.9,2481.8,5.01610153]
[1728781161725,5.0,2481.9,2481.8,6.67557812]
[1728781163452,5.0,2481.9,2481.8,6.67538329]
[1728781163953,5.0,2481.9,2481.8,6.67538713]
[1728781167341,5.0,2481.9,2481.8,6.04476276]
[1728781167538,5.0,2481.9,2481.8,6.67529887]
[1728781168278,5.0,2481.9,2481.8,5.62479329]
[1728781168434,5.0,2481.9,2481.8,6.67540114]
[1728781169651,5.0,2481.9,2481.8,10.70473114]
[1728781171077,5.0,2481.9,2481.8,10.3766485]
[1728781171236,5.0,2481.9,2481.8,10.22074163]
[1728781171432,5.0,2481.9,2481.8,10.70477724]
[1728781173253,5.0,2481.9,2481.8,10.70489873]
[1728781173449,5.0,2482.2,2482.1,4.02884]
[1728781173788,5.0,2482.2,2482.1,5.76744339]
[1728781174082,5.0,2482.2,2482.1,5.85050596]
[1728781174980,5.0,2482.2,2482.1,5.5479779]
[1728781175188,5.0,2482.2,2482.1,5.85049884]
[1728781178589,5.0,2482.2,2482.1,5.72431901]
[1728781178743,5.0,2482.2,2482.1,2.12421229]
[1728781178942,5.0,2482.2,2482.1,1.82169135]
[1728781182352,5.0,2482.2,2482.1,1.69551158]
[1728781182560,5.0,2482.2,2482.1,1.82169441]
[1728781183602,5.0,2482.2,2482.1,0.51179891]
[1728781183846,5.7557,2482.2,2482.1,0.51179891]
[1728781186225,6.90342768,2482.2,2482.1,0.51189222]
[1728781188423,5.7557,2482.2,2482.1,0.51189222]
[1728781193385,9.78438,2482.2,2482.1,0.08306257]
[1728781193674,9.78438,2482.2,2481.7,2.15744182]
[1728781193675,5.0,2481.8,2481.7,2.15744182]
[1728781193822,5.0,2481.8,2481.7,4.17611555]
[1728781194018,5.0,2481.8,2481.7,5.02366187]
[1728781194470,5.0,2481.8,2481.7,4.17611555]
[1728781197148,5.0,2481.8,2481.7,3.06126977]
[1728781197380,5.0,2481.8,2481.7,4.17606338]
[1728781197566,5.0,2481.8,2481.7,4.17601972]
[1728781199181,5.0,2481.8,2481.7,3.3893802]
[1728781199374,5.0,2481.8,2481.7,4.17590543]
[1728781200883,5.0,2481.8,2481.7,4.17550059]
[1728781202158,9.02933,2481.8,2481.7,0.42870602]
[1728781202460,5.0,2481.5,2481.4,1.3098955]
[1728781202651,5.0,2481.5,2481.4,2.43927582]
[1728781203290,5.0,2481.5,2481.4,1.73871693]
[1728781203471,5.0,2481.5,2481.4,1.61250946]
[1728781203661,5.0,2481.5,2481.4,1.73860613]
[1728781205786,5.0,2481.5,2481.4,1.43610394]
[1728781205985,5.0,2481.5,2481.4,1.73844778]
[1728781206189,5.0,2481.5,2481.4,1.3098955]
[1728781206544,5.0,2481.5,2481.4,6.38202089]
[1728781206748,5.0,2481.8,2481.4,8.62732388]
[1728781207006,5.0,2481.8,2481.7,1.3098955]
[1728781208470,5.0,2481.8,2481.6,1.3098955]
[1728781209284,5.0,2481.8,2481.6,5.3395455]
[1728781211694,5.0,2481.8,2481.6,1.3098955]
[1728781212196,5.0,2481.8,2481.6,5.3395355]
[1728781212692,5.0,2481.5,2481.4,4.83918]
[1728781212858,5.0,2481.5,2481.4,5.3398755]
[1728781213044,5.0,2481.5,2481.4,1.3098955]
[1728781213545,5.0,2481.5,2481.3,1.3500114]
[1728781214572,0.7612,2481.4,2481.3,0.0401159]
[1728781215093,0.7612,2481.4,2481.3,1.3500114]
[1728781216388,5.0,2481.5,2481.3,1.3500114]
[1728781217252,5.0,2481.5,2481.4,1.3098955]
[1728781217556,5.0,2481.5,2481.4,1.38365663]
[1728781217772,5.0,2481.5,2481.4,2.32469877]
[1728781225256,5.0,2481.5,2481.4,1.38365663]
[1728781232407,5.0,2481.5,2481.4,0.07376113]
[1728781238684,9.78482,2481.5,2481.4,0.07376113]
[1728781238911,12.78482,2481.5,2481.4,0.07376113]
[1728781245423,14.47803683,2481.5,2481.4,0.07376113]
[1728781245722,12.78482,2481.5,2481.4,0.07376113]
[1728781246272,3.0,2481.4,2481.3,0.0401159]
[1728781246585,3.0,2481.4,2481.3,0.114097]
[1728781247775,3.0,2481.4,2481.3,0.0401159]
[1728781248221,7.02998,2481.4,2481.3,0.0401159]
[1728781250691,5.0,2481.2,2481.0,1.3000114]
[1728781251219,5.0,2481.2,2481.1,0.07416641]
[1728781254417,5.0,2481.2,2481.0,1.3098955]
[1728781254619,5.0,2481.2,2481.1,0.07416641]
[1728781254796,5.8032,2481.2,2481.1,0.07416641]
[1728781255193,5.8032,2481.2,2480.8,2.1423955]
[1728781255601,5.8032,2481.2,2480.9,0.07434052]
[1728781256322,7.489532,2481.2,2480.9,0.07434052]
[1728781256612,4.03047,2481.1,2480.9,0.07434052]
[1728781256809,5.0,2480.8,2480.7,1.3098955]
[1728781257013,5.0,2480.8,2480.7,1.43613766]
[1728781257225,5.0,2480.8,2480.7,0.20077741]
[1728781257589,5.0,2480.8,2480.7,0.07453525]
[1728781257790,9.03095,2480.8,2480.7,0.07453525]
[1728781258141,10.80095406,2480.8,2480.5,1.3098955]
[1728781258301,5.0,2480.5,2480.3,0.7995]
[1728781258486,5.0,2480.5,2480.4,1.3098955]
[1728781259433,5.0,2480.5,2480.3,2.1093955]
[1728781259592,5.0,2480.5,2480.4,1.3098955]
[1728781260815,5.0,2480.5,2480.3,2.1093955]
[1728781260988,5.0,2480.5,2480.3,1.3098955]
[1728781261192,5.0,2480.1,2480.0,0.0060504]
[1728781263437,5.7839,2480.1,2480.0,0.0060504]
[1728781265315,5.0,2480.1,2480.0,1.3159459]
[1728781265707,5.0,2480.1,2480.0,4.0383004]
[1728781266824,5.0,2480.1,2480.0,0.0060504]
[1728781267000,5.0,2480.1,2480.0,4.0383004]
[1728781267202,0.9616996,2480.0,2479.9,5.3422055]
[1728781267924,0.9616996,2480.0,2479.9,4.03231]
[1728781268330,0.9616996,2480.0,2479.9,3.98231]
[1728781269440,0.9616996,2480.0,2479.9,5.2922055]
[1728781269946,0.9616996,2480.0,2479.9,3.98231]
[1728781270314,0.9616996,2480.0,2479.9,4.03242]
[1728781272460,0.9616996,2480.0,2479.9,4.10551095]
[1728781272616,0.9616996,2480.0,2479.9,0.07309095]
[1728781279956,5.0,2479.8,2479.7,5.3426255]
[1728781281143,5.0,2479.8,2479.7,4.03273]
[1728781283223,5.0,2479.8,2479.6,4.82733]
[1728781283437,5.59616996,2479.8,2479.6,4.03283]
[1728781283726,5.0,2479.5,2479.3,7.3]
[1728781283931,5.0,2479.1,2478.9,4.78423]
[1728781284473,5.0,2479.1,2478.8,0.1236171]
[1728781285235,5.0,2479.1,2478.8,5.4675826]
[1728781285471,5.0,2479.1,2478.8,4.1576871]
[1728781286047,5.0,2479.1,2478.8,0.1236171]
[1728781287236,5.59016204,2479.1,2478.8,0.1236171]
[1728781287571,5.59016204,2479.1,2478.9,0.07085929]
[1728781293500,9.62389204,2479.1,2478.9,0.07085929]
[1728781293698,0.7887,2479.0,2478.9,0.07085929]
[1728781296208,4.82258,2479.0,2478.9,0.07085929]
[1728781296362,5.78938406,2479.0,2478.9,0.07085929]
[1728781297878,1.75550406,2479.0,2478.9,0.07085929]
[1728781298708,5.78938406,2479.0,2478.9,0.07085929]
[1728781299111,1.75550406,2479.0,2478.9,0.07085929]
[1728781299269,5.78938406,2479.0,2478.9,0.07085929]
[1728781300394,7.09927956,2479.0,2478.9,0.07085929]
[1728781300601,10.09927956,2479.0,2478.9,0.07085929]
[1728781300939,7.82274,2478.9,2478.8,0.1236171]
[1728781301143,9.6326355,2478.9,2478.8,0.1236171]
[1728781303701,8.32274,2478.9,2478.8,0.1236171]
[1728781304033,8.32274,2478.9,2478.8,0.19501569]
[1728781304906,8.32274,2478.9,2478.8,0.1236171]
[1728781305107,8.32274,2478.9,2478.8,0.19501569]
[1728781307409,9.6326355,2478.9,2478.8,0.1236171]
[1728781307622,9.6326355,2478.9,2478.8,0.19501569]
[1728781307826,9.6326355,2478.9,2478.8,0.1236171]
[1728781309256,10.1826355,2478.9,2478.8,0.1236171]
[1728781309447,10.71442115,2478.9,2478.8,0.1236171]
[1728781309951,5.0,2477.7,2477.2,12.15899]
[1728781310105,5.0,2477.4,2477.3,4.03662]
[1728781310299,2.0611955,2478.0,2477.3,5.3465155]
[1728781310545,0.7513,2478.0,2477.3,5.3465155]
[1728781310846,3.93642348,2477.5,2477.4,4.03648]
[1728781311002,3.93642348,2477.5,2477.4,4.85878]
[1728781311343,3.93642348,2477.5,2477.4,7.0582175]
[1728781314261,3.93642348,2477.5,2477.4,5.748322]
[1728781314410,3.93642348,2477.5,2477.4,7.0582175]
[1728781315106,3.93642348,2477.5,2477.4,0.8223]
[1728781317619,3.93642348,2477.5,2477.4,4.92897162]
[1728781318248,3.93642348,2477.5,2477.4,6.23886712]
[1728781318999,3.93642348,2477.5,2477.4,0.89249162]
[1728781321219,3.93642348,2477.5,2477.4,0.07019162]
[1728781321441,7.97274348,2477.5,2477.4,0.07019162]
[1728781321871,7.97274348,2477.5,2477.0,2.1321955]
[1728781322091,7.97274348,2477.5,2477.4,0.07038695]
[1728781322382,3.93642348,2477.5,2477.1,5.3468655]
[1728781322522,3.93642348,2477.5,2477.4,0.07038695]
[1728781322723,3.93642348,2477.5,2477.1,5.3468655]
[1728781322926,7.97274348,2477.5,2477.4,0.07039822]
[1728781323126,8.74754348,2477.5,2477.0,2.1321955]
[1728781323360,8.74754348,2477.5,2477.4,0.07039822]
[1728781323525,8.74754348,2477.5,2477.0,2.1321955]
[1728781323725,8.74754348,2477.5,2477.4,0.07039822]
[1728781323976,8.74754348,2477.5,2477.0,2.1321955]
[1728781324137,8.74754348,2477.5,2477.4,0.07039822]
[1728781324341,4.71122348,2477.5,2477.1,1.3098955]
[1728781324542,4.71122348,2477.5,2477.4,0.07039822]
[1728781324864,4.71122348,2477.5,2477.1,1.3098955]
[1728781325063,4.71122348,2477.5,2477.4,0.07039822]
[1728781325280,3.93642348,2477.2,2476.9,4.03717]
[1728781325451,3.93642348,2477.2,2476.8,4.83796]
[1728781325783,3.93642348,2477.2,2476.8,0.8005]
[1728781326039,3.93642348,2477.2,2476.8,6.1478355]
[1728781326510,3.93642348,2476.9,2476.8,0.8005]
[1728781326682,3.93642348,2476.9,2476.7,5.3474355]
[1728781326983,3.93642348,2476.9,2476.7,5.05612055]
[1728781327340,3.93642348,2476.9,2476.7,1.01858055]
[1728781327549,3.93642348,2476.9,2476.7,6.36606605]
[1728781327748,3.93642348,2476.9,2476.7,2.32847605]
[1728781327966,3.93642348,2476.9,2476.7,6.36609605]
[1728781329273,0.7748,2477.1,2476.3,4.1617671]
[1728781329274,3.93642348,2476.6,2476.3,4.1617671]
[1728781329433,3.93642348,2476.6,2476.4,1.3098955]
[1728781329638,3.93642348,2476.6,2476.3,4.1617671]
[1728781329854,3.93642348,2476.6,2476.3,1.4335126]
[1728781331384,3.93642348,2476.6,2476.3,2.46460586]
[1728781331586,3.93642348,2476.6,2476.3,1.4335126]
[1728781331795,3.93642348,2476.6,2476.3,5.4717926]
[1728781332593,3.93642348,2476.6,2476.4,0.06918969]
[1728781335577,3.93642348,2476.6,2476.5,2.1103955]
[1728781335777,7.03652,2477.4,2476.5,2.1103955]
[1728781335778,3.93642348,2476.9,2476.5,2.1103955]
[1728781335977,3.93642348,2476.9,2476.8,1.3098955]
[1728781336177,3.93642348,2476.9,2476.8,5.3473555]
[1728781336407,3.93642348,2476.9,2476.8,6.21670328]
[1728781336612,3.93642348,2477.2,2477.0,4.03711]
[1728781336798,3.93642348,2477.2,2476.8,4.90673778]
[1728781336983,2.0846955,2477.4,2476.8,4.83789]
[1728781336984,3.93642348,2476.9,2476.8,4.83789]
[1728781337228,3.93642348,2476.9,2476.8,5.74724985]
[1728781337728,3.93642348,2476.9,2476.8,7.05714535]
[1728781338078,3.93642348,2476.9,2476.8,2.1103955]
[1728781338314,3.93642348,2476.9,2476.6,0.8005]
[1728781338515,3.93642348,2476.9,2476.5,4.03784]
[1728781339125,3.93642348,2476.9,2476.3,4.1617871]
[1728781339305,3.93642348,2476.6,2476.3,4.1617871]
[1728781339624,3.93642348,2476.6,2476.3,0.1236171]
[1728781340632,3.93642348,2476.6,2476.3,4.1618771]
[1728781341328,3.93642348,2476.6,2476.3,4.1617971]
[1728781342129,3.93642348,2476.6,2476.3,7.87124571]
[1728781342708,3.93642348,2476.6,2476.5,4.03795]
[1728781342906,3.93642348,2476.6,2476.5,7.86042212]
[1728781343113,3.93642348,2477.2,2477.0,4.03701]
[1728781343357,3.93642348,2477.2,2477.0,8.07402]
[1728781343524,3.93642348,2477.2,2477.1,4.03697]
[1728781346409,3.93642348,2477.2,2477.0,4.03701]
[1728781347304,3.93642348,2477.2,2477.0,4.920848]
[1728781347575,3.93642348,2477.2,2477.1,0.06854256]
[1728781348956,3.93642348,2477.2,2476.8,4.80137]
[1728781348957,3.93642348,2477.2,2476.8,4.03737]
[1728781349295,3.93642348,2476.9,2476.6,4.80178]
[1728781349894,3.93642348,2476.9,2476.6,4.03778]
[1728781350056,3.93642348,2476.9,2476.6,4.921762]
[1728781351169,3.93642348,2476.9,2476.6,4.921672]
[1728781351556,3.93642348,2476.9,2476.8,4.03746]
[1728781354620,3.93642348,2477.2,2476.8,3.83857212]
[1728781354836,3.93642348,2477.2,2477.0,4.03698]
[1728781355127,3.93642348,2477.2,2477.1,4.03697]
[1728781355275,3.93642348,2477.5,2477.4,4.03648]
[1728781361936,3.93642348,2477.5,2477.3,11.91185212]
[1728781362438,3.93642348,2477.5,2477.3,7.87521212]
[1728781362640,3.93642348,2477.5,2477.4,0.06582824]
[1728781364012,4.76362348,2477.5,2477.4,0.06582824]
[1728781364305,5.15726583,2477.5,2476.9,8.50306091]
[1728781364467,5.15726583,2477.5,2477.4,0.06577402]
[1728781364468,8.79994348,2477.5,2477.4,0.06577402]
[1728781364761,3.93642348,2477.0,2476.7,5.11814896]
[1728781364944,3.93642348,2477.0,2476.7,4.81593]
[1728781365125,3.93642348,2477.0,2476.7,6.05003194]
[1728781365315,4.76362348,2477.0,2476.4,4.81649]
[1728781365677,3.93642348,2476.7,2476.4,0.30240301]
[1728781366057,3.93642348,2476.7,2476.3,8.30014164]
[1728781366241,3.93642348,2476.7,2476.3,3.48451767]
[1728781366454,3.93642348,2476.7,2476.3,0.55250694]
[1728781366752,0.8272,2476.6,2476.3,0.1236171]
[1728781368728,3.93642348,2476.4,2476.3,0.1236171]
[1728781370228,3.93642348,2476.4,2476.3,3.18208922]
[1728781371535,3.93642348,2476.4,2476.3,0.1236171]
[1728781374331,0.7524,2475.5,2475.3,0.24721043]
[1728781374477,0.7524,2475.5,2475.2,1.27131948]
[1728781374478,3.93642348,2475.4,2475.2,0.1265109]
[1728781374794,3.93642348,2475.4,2474.9,6.48812755]
[1728781374977,4.68882348,2475.8,2475.0,0.69993851]
[1728781375193,4.68882348,2475.8,2475.3,3.05847212]
[1728781375396,3.93642348,2475.3,2475.2,4.04007]
[1728781375591,3.93642348,2475.6,2475.2,7.09854212]
[1728781375742,3.93642348,2475.6,2475.2,6.74854212]
[1728781376460,3.93642348,2475.6,2475.3,4.03986]
[1728781376886,3.93642348,2475.6,2475.2,6.74854212]
[1728781377571,3.93642348,2475.6,2475.3,0.05927424]
[1728781377881,3.93642348,2475.6,2475.2,6.74854212]
[1728781378172,3.93642348,2475.6,2475.3,0.05927424]
[1728781378380,3.93642348,2475.6,2475.2,6.74854212]
[1728781378680,4.40530583,2475.6,2475.4,0.05918115]
[1728781378982,4.40530583,2475.6,2475.5,0.05908807]
[1728781379137,4.40530583,2475.6,2475.0,4.86403]
[1728781379359,4.40530583,2475.6,2475.5,0.05908807]
[1728781379555,4.40530583,2475.6,2475.1,4.04023]
[1728781379556,3.93642348,2475.3,2475.1,4.04023]
[1728781380299,3.93642348,2475.3,2475.0,4.04033]
[1728781380300,3.93642348,2475.3,2475.0,8.0806]
[1728781380502,3.93642348,2475.3,2475.0,4.04027]
[1728781380697,3.93642348,2475.3,2475.2,4.04007]
[1728781381197,4.68882348,2475.3,2475.1,4.04014]
[1728781381403,3.93642348,2475.3,2475.2,4.04007]
[1728781383824,3.93642348,2475.3,2475.2,7.09854212]
[1728781384035,3.93642348,2475.3,2475.2,8.29478033]
[1728781386185,3.93642348,2475.7,2475.6,4.03942]
[1728781391387,3.93642348,2476.0,2475.9,4.03893]
[1728781391855,3.93642348,2476.0,2475.9,7.09740212]
[1728781392652,3.93642348,2476.0,2475.9,7.15463983]
[1728781392856,3.93642348,2476.0,2475.9,8.35235281]
[1728781394567,3.0,2477.0,2476.1,4.0386]
[1728781394738,3.93642348,2476.6,2476.5,4.03795]
[1728781395131,3.93642348,2476.6,2476.5,4.09456995]
[1728781399055,5.15346583,2476.6,2476.5,0.05661995]
[1728781399372,5.15346583,2476.6,2476.3,4.03827]
[1728781399560,5.15346583,2476.6,2476.5,4.09435574]
[1728781399561,4.75982348,2476.6,2476.5,4.09435574]
[1728781399771,4.75982348,2476.6,2476.4,0.05649875]
[1728781400077,4.75982348,2476.6,2476.4,4.0381]
[1728781400278,4.75982348,2476.6,2476.5,0.05640574]
[1728781400579,4.75982348,2476.6,2476.5,4.09435574]
[1728781401189,3.93642348,2476.6,2476.5,4.09435574]
[1728781414625,3.86642348,2476.6,2476.5,4.09435574]
[1728781421535,3.86642348,2476.6,2476.5,0.05640574]
[1728781421838,4.32916583,2476.6,2476.5,0.05640574]
[1728781422820,4.32916583,2476.6,2476.3,4.03815]
[1728781423133,5.15036583,2476.6,2476.4,0.05642799]
[1728781424021,5.15036583,2476.6,2476.4,4.09452799]
[1728781424220,4.68762348,2476.6,2476.4,4.09452799]
[1728781425610,4.68762348,2476.6,2476.5,4.03795]
[1728781425813,4.68762348,2476.6,2476.5,4.09430733]
[1728781426503,4.68762348,2476.6,2476.5,0.05635733]
[1728781428926,12.27541348,2476.6,2476.5,0.05635733]
[1728781429133,12.27541348,2476.6,2475.6,11.33928]
[1728781429134,4.68762348,2475.8,2475.7,4.03917]
[1728781429534,4.68762348,2475.8,2475.7,4.09206489]
[1728781432637,3.86642348,2475.8,2475.7,4.09206489]
[1728781432839,4.68762348,2475.8,2475.7,4.09206489]
[1728781433139,4.68762348,2475.8,2475.7,0.05289489]
[1728781433537,3.86642348,2475.5,2475.4,4.03967]
[1728781433786,3.86642348,2475.5,2475.4,4.09284411]
[1728781435436,3.86642348,2475.5,2475.4,0.05317411]
[1728781435631,3.86642348,2475.5,2475.2,8.08]
[1728781435852,4.68762348,2475.5,2475.4,0.05317411]
[1728781436077,5.15638583,2475.5,2475.3,0.0532672]
[1728781436263,5.15638583,2475.5,2475.4,0.05317411]
[1728781436667,5.15638583,2475.5,2475.0,8.08065]
[1728781436869,4.68762348,2475.5,2475.4,0.05317411]
[1728781437095,4.68762348,2475.5,2475.1,4.04023]
[1728781437250,4.68762348,2475.5,2475.4,0.05317411]
[1728781437456,4.68762348,2475.5,2475.1,4.04023]
[1728781437666,4.68762348,2475.5,2475.4,0.05317411]
[1728781437869,5.56031583,2475.5,2475.1,4.04023]
[1728781438068,4.68762348,2475.5,2475.4,0.05317411]
[1728781438293,4.68762348,2475.5,2475.1,4.04023]
[1728781438499,4.68762348,2475.5,2475.4,0.05317411]
[1728781438706,4.68762348,2475.5,2475.1,4.04023]
[1728781439154,4.68762348,2475.5,2475.2,0.0533603]
[1728781440211,0.8212,2475.3,2475.2,0.0533603]
[1728781440507,3.86642348,2474.9,2474.7,4.04088]
[1728781440687,3.86642348,2474.9,2474.7,4.79678]
[1728781440895,3.86642348,2474.9,2474.8,7.15311371]
[1728781441059,0.8212,2475.3,2475.0,4.04038]
[1728781441060,3.86642348,2475.2,2475.0,4.04038]
[1728781441255,3.86642348,2475.2,2475.1,4.79624]
[1728781441463,3.86642348,2475.2,2475.1,4.85006223]
[1728781442500,0.8212,2475.7,2475.1,0.80982223]
[1728781442501,3.86642348,2475.5,2475.1,0.80982223]
[1728781442715,3.86642348,2475.8,2475.6,4.03928]
[1728781442926,3.86642348,2475.8,2475.7,4.525578]
[1728781443123,3.86642348,2475.8,2475.7,4.57884545]
[1728781444408,3.86642348,2476.1,2475.7,0.53958545]
[1728781444699,3.86642348,2476.1,2476.0,4.03877]
[1728781445076,3.86642348,2476.1,2476.0,4.09171543]
[1728781445292,3.86642348,2476.4,2476.3,4.03828]
[1728781445686,3.86642348,2476.4,2476.3,4.09088673]
[1728781446569,3.86642348,2476.4,2476.3,0.05260673]
[1728781447207,3.86642348,2476.4,2476.3,4.09088673]
[1728781447715,3.86642348,2476.4,2476.3,0.05260673]
[1728781448477,4.68362348,2476.4,2476.3,0.05260673]
[1728781448705,4.68362348,2476.4,2476.0,4.03867]
[1728781449002,4.68362348,2476.4,2476.3,0.05257207]
[1728781449208,5.55576683,2476.4,2476.0,4.03867]
[1728781449394,4.68362348,2476.4,2476.3,0.05257208]
[1728781449562,4.68362348,2476.4,2476.0,8.07734]
[1728781449765,4.68362348,2476.4,2476.1,0.05275813]
[1728781450062,4.68362348,2476.4,2476.1,4.09134813]
[1728781450769,4.68362348,2476.4,2476.2,4.03834]
[1728781451082,4.68362348,2476.4,2476.3,0.05257208]
[1728781451996,3.86642348,2476.4,2476.3,4.09085208]
[1728781453086,3.86642348,2476.4,2476.3,4.91475208]
[1728781453406,3.86642348,2476.4,2476.3,6.1159175]
[1728781458100,3.86642348,2476.4,2476.3,4.09085208]
[1728781465359,3.86642348,2476.4,2476.3,0.05257208]
[1728781465516,4.66772348,2476.4,2476.3,0.05257208]
[1728781465953,4.66772348,2476.4,2476.1,4.03858]
[1728781466253,4.66772348,2476.4,2476.2,0.05236707]
[1728781467155,4.66772348,2476.4,2476.0,4.03868]
[1728781467358,4.66772348,2476.4,2476.3,0.05227405]
[1728781467656,5.53827783,2476.4,2476.3,0.05228185]
[1728781467861,5.53827783,2476.4,2476.0,4.03875]
[1728781468058,5.53827783,2476.4,2476.3,0.05228185]
[1728781468262,5.53827783,2476.4,2476.0,4.03875]
[1728781468571,5.53827783,2476.4,2476.3,0.05228185]
[1728781468729,5.53827783,2476.4,2476.0,4.03875]
[1728781468916,5.53827783,2476.4,2476.3,0.05228185]
[1728781469111,5.53827783,2476.4,2476.0,4.03875]
[1728781469710,5.53827783,2476.4,2476.1,0.0524679]
[1728781470360,0.55382778,2476.3,2476.1,0.0524679]
[1728781470625,0.8013,2476.2,2476.1,0.0524679]
[1728781470792,3.86642348,2475.9,2475.6,4.03935]
[1728781470963,3.86642348,2475.9,2475.6,8.07867]
[1728781471160,3.86642348,2475.9,2475.6,4.03932]
[1728781471860,0.8013,2475.8,2475.4,4.03965]
[1728781472061,3.86642348,2475.6,2475.4,4.03965]
[1728781475096,3.86642348,2475.6,2475.5,4.09270866]
[1728781483419,3.86642348,2475.6,2475.5,0.05312866]
[1728781493221,3.86642348,2475.6,2475.2,4.03997]
[1728781493423,3.86642348,2475.6,2475.5,0.05330746]
[1728781493818,3.86642348,2475.6,2475.2,4.03997]
[1728781494021,3.86642348,2475.6,2475.2,8.07995]
[1728781494277,3.86642348,2475.6,2475.3,4.03977]
[1728781494426,3.86642348,2475.6,2475.3,4.09326363]
[1728781494637,3.86642348,2475.6,2475.3,0.05349363]
[1728781495061,3.86642348,2475.6,2475.2,8.07995]
[1728781495231,3.86642348,2475.6,2475.3,0.05349363]
[1728781495760,3.86642348,2475.6,2475.4,0.05340054]
[1728781496337,3.86642348,2475.6,2475.5,4.03958]
[1728781496523,3.86642348,2475.6,2475.5,4.09289864]
[1728781497646,3.86642348,2475.6,2475.5,0.05331864]
[1728781497960,3.86642348,2475.6,2475.4,4.03973]
[1728781498265,3.86642348,2475.6,2475.5,0.05331864]
[1728781500529,3.86642348,2475.6,2475.4,1.31862034]
[1728781500873,3.86642348,2475.6,2475.5,0.05330935]
[1728781503472,9.97294883,2475.6,2475.5,0.05330935]
[1728781503682,4.65892348,2475.6,2475.5,0.05330935]
[1728781503983,3.86642348,2475.3,2475.2,1.31862034]
[1728781512583,3.86642348,2475.3,2475.2,1.37048036]
[1728781514070,4.68822348,2475.3,2475.2,0.05186002]
[1728781514271,5.07486583,2475.3,2475.2,0.05186002]
[1728781514476,5.07486583,2475.3,2475.0,1.31862034]
[1728781514689,5.07486583,2475.3,2475.2,0.05194125]
[1728781514981,5.07486583,2475.3,2475.2,0.05194867]
[1728781515296,4.68822348,2475.3,2475.2,1.31862034]
[1728781515580,4.68822348,2475.3,2475.2,0.05195053]
[1728781515956,4.68822348,2475.3,2475.2,1.37057087]
[1728781516287,3.86642348,2475.3,2475.2,1.37057087]
[1728781517075,4.68822348,2475.3,2475.2,0.05195053]
[1728781517603,3.86642348,2475.3,2475.2,6.76261896]
[1728781517764,3.86642348,2475.3,2475.2,7.06563426]
[1728781518293,3.86642348,2475.3,2475.2,6.76261896]
[1728781518448,3.86642348,2475.3,2475.2,7.06563556]